fUSD/lending_fUSD_20241225
["ID","MTS","AMOUNT","RATE_DAILY","PERIOD"]
[346669603,1735164277333,-500.0,0.00012111,2]
[346669604,1735164277357,-500.0,0.00012111,2]
[346669605,1735164277380,-500.0,0.00012111,2]
[346669606,1735164277404,-500.0,0.00012111,2]
[346669607,1735164277431,-500.0,0.00012111,2]
[346669608,1735164277454,-500.0,0.00012111,2]
[346669609,1735164277477,-500.0,0.00012111,2]
[346669610,1735164277500,-467.09790978,0.00012111,2]
[346669611,1735164277525,-225.45486759,0.00012111,2]
[346669612,1735164277547,-500.0,0.00012111,2]
[346669613,1735164277570,-500.0,0.00012111,2]
[346669614,1735164277594,-636.34,0.00012111,2]
[346669615,1735164277616,-500.0,0.00012111,2]
[346669616,1735164277638,-509.21,0.00012111,2]
[346669617,1735164277661,-500.0,0.00012111,2]
[346669618,1735164277683,-500.0,0.00012111,2]
[346669619,1735164277705,-500.0,0.00012111,2]
[346669620,1735164277729,-500.0,0.00012111,2]
[346669621,1735164277754,-500.0,0.00012111,2]
[346669622,1735164277778,-500.0,0.00012111,2]
[346669623,1735164277801,-500.0,0.00012111,2]
[346669624,1735164277824,-500.0,0.00012111,2]
[346669625,1735164277849,-500.0,0.00012111,2]
[346669626,1735164277874,-1080.81,0.00012111,2]
[346669627,1735164277897,-500.0,0.00012111,2]
[346669628,1735164277921,-500.0,0.00012111,2]
[346669629,1735164277944,-500.0,0.00012111,2]
[346669630,1735164277967,-500.0,0.00012111,2]
[346669631,1735164277990,-500.0,0.00012111,2]
[346669632,1735164278013,-500.0,0.00012111,2]
[346669633,1735164278038,-500.0,0.00012111,2]
[346669634,1735164278060,-500.0,0.00012111,2]
[346669635,1735164278083,-500.0,0.00012111,2]
[346669636,1735164278106,-500.0,0.00012111,2]
[346669637,1735164278129,-500.0,0.00012111,2]
[346669638,1735164278151,-500.0,0.00012111,2]
[346669639,1735164278174,-500.0,0.00012111,2]
[346669640,1735164278197,-500.0,0.00012111,2]
[346669641,1735164278219,-500.0,0.00012111,2]
[346669642,1735164278241,-369.76126535,0.00012111,2]
[346669643,1735164278264,-500.0,0.00012111,2]
[346669644,1735164278288,-500.0,0.00012111,2]
[346669645,1735164278310,-500.0,0.00012111,2]
[346669646,1735164278334,-1275.074193,0.00012111,2]
[346669647,1735164278357,-500.0,0.00012111,2]
[346669648,1735164278382,-500.0,0.00012111,2]
[346669649,1735164278404,-1036.97,0.00012111,2]
[346669650,1735164278428,-1588.927792,0.00012111,2]
[346669651,1735164278451,-500.0,0.00012111,2]
[346669652,1735164278473,-500.0,0.00012111,2]
[346669653,1735164278496,-500.0,0.00012111,2]
[346669654,1735164278519,-718.73,0.00012111,2]
[346669655,1735164278542,-500.0,0.00012111,2]
[346669656,1735164278565,-500.0,0.00012111,2]
[346669657,1735164278588,-500.0,0.00012111,2]
[346669658,1735164278610,-500.0,0.00012111,2]
[346669659,1735164278633,-500.0,0.00012111,2]
[346669660,1735164278657,-500.0,0.00012111,2]
[346669661,1735164278681,-500.0,0.00012111,2]
[346669662,1735164278704,-500.0,0.00012111,2]
[346669663,1735164278727,-500.0,0.00012111,2]
[346669664,1735164278752,-500.0,0.00012111,2]
[346669665,1735164278775,-500.0,0.00012111,2]
[346669666,1735164278801,-925.0,0.00012111,2]
[346669667,1735164278825,-999.65,0.00012111,2]
[346669668,1735164278852,-500.0,0.00012111,2]
[346669669,1735164278877,-500.0,0.00012111,2]
[346669670,1735164278902,-504.79,0.00012111,2]
[346669671,1735164278925,-500.0,0.00012111,2]
[346669672,1735164278951,-709.37,0.00012111,2]
[346669673,1735164278974,-500.0,0.00012111,2]
[346669674,1735164279001,-500.0,0.00012111,2]
[346669675,1735164279027,-771.1,0.00012111,2]
[346669676,1735164279237,-500.0,0.00012111,2]
[346669677,1735164279262,-500.0,0.00012111,2]
[346669678,1735164279285,-443.22912515,0.00012111,2]
[346669679,1735164279309,-420.00421678,0.00012111,2]
[346669680,1735164279334,-702.5,0.00012111,2]
[346669681,1735164279358,-500.0,0.00012111,2]
[346669682,1735164279382,-500.0,0.00012111,2]
[346669683,1735164279407,-500.0,0.00012111,2]
[346669684,1735164279432,-500.0,0.00012111,2]
[346669685,1735164279457,-500.0,0.00012111,2]
[346669686,1735164279481,-536.16,0.00012111,2]
[346669687,1735164279505,-865.77,0.00012111,2]
[346669688,1735164279529,-500.0,0.00012111,2]
[346669689,1735164279553,-500.0,0.00012111,2]
[346669690,1735164279577,-500.0,0.00012111,2]
[346669691,1735164279601,-500.0,0.00012111,2]
[346669692,1735164279625,-500.01,0.00012111,2]
[346669693,1735164279649,-500.0,0.00012111,2]
[346669694,1735164279671,-500.0,0.00012111,2]
[346669695,1735164279694,-975.13,0.00012111,2]
[346669696,1735164279718,-500.0,0.00012111,2]
[346669697,1735164279743,-914.84,0.00012111,2]
[346669698,1735164279768,-500.0,0.00012111,2]
[346669699,1735164279793,-500.0,0.00012111,2]
[346669700,1735164279817,-500.0,0.00012111,2]
[346669701,1735164279841,-1047.86,0.00012111,2]
[346669702,1735164279866,-500.0,0.00012111,2]
[346669703,1735164279891,-840.33,0.00012111,2]
[346669704,1735164279916,-500.0,0.00012111,2]
[346669705,1735164279942,-500.0,0.00012111,2]
[346669706,1735164279967,-500.0,0.00012111,2]
[346669707,1735164279991,-509.2,0.00012111,2]
[346669708,1735164280015,-500.0,0.00012111,2]
[346669709,1735164280040,-1028.5,0.00012111,2]
[346669710,1735164280064,-500.0,0.00012111,2]
[346669711,1735164280089,-500.0,0.00012111,2]
[346669712,1735164280114,-657.78,0.00012111,2]
[346669713,1735164280137,-500.0,0.00012111,2]
[346669714,1735164280162,-500.0,0.00012111,2]
[346669715,1735164280187,-500.0,0.00012111,2]
[346669716,1735164280213,-506.07,0.00012111,2]
[346669717,1735164280239,-500.0,0.00012111,2]
[346669718,1735164280264,-500.0,0.00012111,2]
[346669719,1735164280290,-500.0,0.00012111,2]
[346669720,1735164280315,-500.0,0.00012111,2]
[346669721,1735164280341,-801.09,0.00012111,2]
[346669722,1735164280368,-500.0,0.00012111,2]
[346669723,1735164280394,-1095.9,0.00012111,2]
[346669724,1735164280419,-703.76,0.00012111,2]
[346669725,1735164280444,-500.0,0.00012111,2]
[346669726,1735164280468,-500.0,0.00012111,2]
[346669727,1735164280493,-1493.24,0.00012111,2]
[346669728,1735164280517,-508.76720034,0.00012111,2]
[346669729,1735164280542,-1622.13,0.00012111,2]
[346669730,1735164280571,-500.0,0.00012111,2]
[346669731,1735164280595,-434.55,0.00012111,2]
[346669732,1735164280619,-500.0,0.00012111,2]
[346669733,1735164280642,-500.0,0.00012111,2]
[346669734,1735164280667,-500.0,0.00012111,2]
[346669735,1735164280691,-552.06,0.00012111,2]
[346669736,1735164280716,-500.0,0.00012111,2]
[346669737,1735164280742,-500.0,0.00012111,2]
[346669738,1735164280778,-500.0,0.00012111,2]
[346669739,1735164280802,-500.0,0.00012111,2]
[346669740,1735164280826,-500.0,0.00012111,2]
[346669741,1735164280850,-500.0,0.00012111,2]
[346669742,1735164280875,-500.0,0.00012111,2]
[346669743,1735164280897,-500.0,0.00012111,2]
[346669744,1735164280920,-500.0,0.00012111,2]
[346669745,1735164280944,-691.59,0.00012111,2]
[346669746,1735164280966,-500.0,0.00012111,2]
[346669747,1735164280989,-500.0,0.00012111,2]
[346669748,1735164281013,-1373.84,0.00012111,2]
[346669749,1735164281040,-500.0,0.00012111,2]
[346669750,1735164281063,-2141.5,0.00012111,2]
[346669751,1735164281087,-1878.43,0.00012111,2]
[346669752,1735164281110,-500.0,0.00012111,2]
[346669753,1735164281133,-1078.32,0.00012111,2]
[346669754,1735164281156,-2761.63,0.00012111,2]
[346669755,1735164281178,-500.0,0.00012111,2]
[346669756,1735164281201,-500.0,0.00012111,2]
[346669757,1735164281224,-500.0,0.00012111,2]
[346669758,1735164281248,-2746.02,0.00012111,2]
[346669759,1735164281270,-500.0,0.00012111,2]
[346669760,1735164281293,-500.0,0.00012111,2]
[346669761,1735164281317,-2880.06,0.00012111,2]
[346669762,1735164281340,-500.0,0.00012111,2]
[346669763,1735164281363,-500.0,0.00012111,2]
[346669764,1735164281385,-500.0,0.00012111,2]
[346669765,1735164281409,-3341.89,0.00012111,2]
[346669766,1735164281432,-500.0,0.00012111,2]
[346669767,1735164281455,-500.0,0.00012111,2]
[346669768,1735164281479,-15826.98,0.00012111,2]
[346669769,1735164281503,-500.0,0.00012111,2]
[346669770,1735164281528,-1621.78,0.00012111,2]
[346669771,1735164281553,-1439.39,0.00012111,2]
[346669772,1735164281577,-1377.78,0.00012111,2]
[346669773,1735164281601,-500.0,0.00012111,2]
[346669774,1735164281624,-500.0,0.00012111,2]
[346669775,1735164281649,-160.77320266,0.00012111,2]
[346669776,1735164281673,-500.0,0.00012111,2]
[346669777,1735164281695,-500.0,0.00012111,2]
[346669778,1735164281718,-1521.59,0.00012111,2]
[346669779,1735164281740,-592.95,0.00012111,2]
[346669780,1735164281766,-500.0,0.00012111,2]
[346669781,1735164281789,-873.22,0.00012111,2]
[346669782,1735164281812,-1403.1,0.00012111,2]
[346669783,1735164281834,-500.0,0.00012111,2]
[346669784,1735164281857,-1143.0,0.00012111,2]
[346669785,1735164281880,-872.75,0.00012111,2]
[346669786,1735164281904,-3400.12,0.00012111,2]
[346669787,1735164281926,-500.0,0.00012111,2]
[346669788,1735164281951,-500.0,0.00012111,2]
[346669789,1735164281976,-500.0,0.00012111,2]
[346669790,1735164281999,-500.0,0.00012111,2]
[346669791,1735164282022,-500.0,0.00012111,2]
[346669792,1735164282047,-500.0,0.00012111,2]
[346669793,1735164282070,-500.0,0.00012111,2]
[346669794,1735164282095,-500.0,0.00012111,2]
[346669795,1735164282120,-1967.11,0.00012111,2]
[346669796,1735164282144,-9388.77,0.00012111,2]
[346669797,1735164282168,-6075.06,0.00012111,2]
[346669798,1735164282190,-500.0,0.00012111,2]
[346669799,1735164282214,-3529.64,0.00012111,2]
[346669800,1735164282236,-500.0,0.00012111,2]
[346669801,1735164282258,-500.0,0.00012111,2]
[346669802,1735164282282,-3910.89,0.00012111,2]
[346669803,1735164282305,-500.0,0.00012111,2]
[346669804,1735164282328,-1008.73,0.00012111,2]
[346669805,1735164282351,-500.0,0.00012111,2]
[346669806,1735164282373,-500.0,0.00012111,2]
[346669807,1735164282397,-582.17,0.00012111,2]
[346669808,1735164282420,-409.98641615,0.00012111,2]
[346669809,1735164282444,-500.0,0.00012111,2]
[346669810,1735164282467,-916.08,0.00012111,2]
[346669811,1735164282490,-4341.42,0.00012111,2]
[346669812,1735164282513,-2831.93,0.00012111,2]
[346669813,1735164282537,-1792.92,0.00012111,2]
[346669814,1735164282560,-1974.93,0.00012111,2]
[346669815,1735164282583,-500.0,0.00012111,2]
[346669816,1735164282606,-500.0,0.00012111,2]
[346669817,1735164282629,-727.18,0.00012111,2]
[346669818,1735164282652,-1377.33,0.00012111,2]
[346669819,1735164282675,-500.0,0.00012111,2]
[346669820,1735164282699,-500.0,0.00012111,2]
[346669821,1735164282724,-500.0,0.00012111,2]
[346669822,1735164282751,-500.0,0.00012111,2]
[346669823,1735164282773,-500.0,0.00012111,2]
[346669824,1735164282798,-500.0,0.00012111,2]
[346669825,1735164282823,-4112.45,0.00012111,2]
[346669826,1735164283058,-539.68843179,0.00012111,2]
[346669827,1735164283089,-1234.38,0.00012111,2]
[346669828,1735164283113,-500.0,0.00012111,2]
[346669829,1735164283137,-500.0,0.00012111,2]
[346669830,1735164283162,-931.22,0.00012111,2]
[346669831,1735164283186,-500.0,0.00012111,2]
[346669832,1735164283211,-1090.15,0.00012111,2]
[346669833,1735164283234,-500.0,0.00012111,2]
[346669834,1735164283257,-2984.64,0.00012111,2]
[346669835,1735164283281,-500.0,0.00012111,2]
[346669836,1735164283305,-1922.51,0.00012111,2]
[346669837,1735164283329,-500.0,0.00012111,2]
[346669838,1735164283352,-500.0,0.00012111,2]
[346669839,1735164283376,-740.97,0.00012111,2]
[346669840,1735164283401,-2270.95,0.00012111,2]
[346669841,1735164283425,-500.0,0.00012111,2]
[346669842,1735164283450,-500.0,0.00012111,2]
[346669843,1735164283475,-178.0053917,0.00012111,2]
[346669844,1735164283501,-1423.0,0.00012111,2]
[346669845,1735164283524,-521.04069506,0.00012111,2]
[346669846,1735164283548,-500.0,0.00012111,2]
[346669847,1735164283570,-2480.86,0.00012111,2]
[346669848,1735164283594,-1815.53,0.00012111,2]
[346669849,1735164283620,-500.0,0.00012111,2]
[346669850,1735164283649,-500.0,0.00012111,2]
[346669851,1735164283674,-500.0,0.00012111,2]
[346669852,1735164283700,-500.0,0.00012111,2]
[346669853,1735164283729,-3247.46,0.00012111,2]
[346669854,1735164283758,-500.0,0.00012111,2]
[346669855,1735164283783,-500.0,0.00012111,2]
[346669856,1735164283822,-961.04,0.00012111,2]
[346669857,1735164283854,-500.0,0.00012111,2]
[346669858,1735164283887,-500.0,0.00012111,2]
[346669859,1735164283918,-500.0,0.00012111,2]
[346669860,1735164283950,-500.0,0.00012111,2]
[346669861,1735164283981,-500.0,0.00012111,2]
[346669862,1735164284014,-1640.41,0.00012111,2]
[346669863,1735164284046,-500.0,0.00012111,2]
[346669864,1735164284083,-500.0,0.00012111,2]
[346669865,1735164284116,-9307.39,0.00012111,2]
[346669866,1735164284152,-500.0,0.00012111,2]
[346669867,1735164284186,-654.03,0.00012111,2]
[346669868,1735164284218,-500.0,0.00012111,2]
[346669869,1735164284251,-500.0,0.00012111,2]
[346669870,1735164284286,-2355.75,0.00012111,2]
[346669871,1735164284318,-500.0,0.00012111,2]
[346669872,1735164284352,-500.0,0.00012111,2]
[346669873,1735164284384,-500.0,0.00012111,2]
[346669874,1735164284417,-500.0,0.00012111,2]
[346669875,1735164284451,-763.36,0.00012111,2]
[346669876,1735164284485,-500.0,0.00012111,2]
[346669877,1735164284518,-500.0,0.00012111,2]
[346669878,1735164284552,-500.0,0.00012111,2]
[346669879,1735164284586,-500.0,0.00012111,2]
[346669880,1735164284619,-500.0,0.00012111,2]
[346669881,1735164284652,-1208.26,0.00012111,2]
[346669882,1735164284684,-500.0,0.00012111,2]
[346669883,1735164284718,-500.0,0.00012111,2]
[346669884,1735164284754,-500.0,0.00012111,2]
[346669885,1735164284787,-500.0,0.00012111,2]
[346669886,1735164284821,-500.0,0.00012111,2]
[346669887,1735164284858,-3563.25,0.00012111,2]
[346669888,1735164284892,-500.0,0.00012111,2]
[346669889,1735164284928,-500.0,0.00012111,2]
[346669890,1735164284962,-500.0,0.00012111,2]
[346669891,1735164284996,-1543.29,0.00012111,2]
[346669892,1735164285032,-503.5348061,0.00012111,2]
[346669893,1735164285066,-500.0,0.00012111,2]
[346669894,1735164285101,-500.0,0.00012111,2]
[346669895,1735164285134,-500.0,0.00012111,2]
[346669896,1735164285170,-1601.32,0.00012111,2]
[346669897,1735164285204,-500.0,0.00012111,2]
[346669898,1735164285238,-500.0,0.00012111,2]
[346669899,1735164285270,-497.13299336,0.00012111,2]
[346669900,1735164285304,-1213.26,0.00012111,2]
[346669901,1735164285337,-500.0,0.00012111,2]
[346669902,1735164285371,-1603.06,0.00012111,2]
[346669903,1735164285402,-500.0,0.00012111,2]
[346669904,1735164285435,-500.0,0.00012111,2]
[346669905,1735164285468,-500.0,0.00012111,2]
[346669906,1735164285501,-500.0,0.00012111,2]
[346669907,1735164285534,-500.0,0.00012111,2]
[346669908,1735164285566,-500.0,0.00012111,2]
[346669909,1735164285598,-500.0,0.00012111,2]
[346669910,1735164285631,-500.0,0.00012111,2]
[346669911,1735164285664,-1105.08,0.00012111,2]
[346669912,1735164285696,-501.25185775,0.00012111,2]
[346669913,1735164285728,-500.0,0.00012111,2]
[346669914,1735164285760,-500.0,0.00012111,2]
[346669915,1735164285794,-1692.96,0.00012111,2]
[346669916,1735164285827,-500.0,0.00012111,2]
[346669917,1735164285864,-500.0,0.00012111,2]
[346669918,1735164285897,-1312.03,0.00012111,2]
[346669919,1735164285931,-611.32,0.00012111,2]
[346669920,1735164285963,-623.68,0.00012111,2]
[346669921,1735164285995,-500.0,0.00012111,2]
[346669922,1735164286029,-500.0,0.00012111,2]
[346669923,1735164286063,-500.0,0.00012111,2]
[346669924,1735164286095,-500.0,0.00012111,2]
[346669925,1735164286128,-480.91349404,0.00012111,2]
[346669926,1735164286161,-3100.84,0.00012111,2]
[346669927,1735164286194,-1883.52,0.00012111,2]
[346669928,1735164286226,-500.0,0.00012111,2]
[346669929,1735164286260,-500.0,0.00012111,2]
[346669930,1735164286293,-579.17,0.00012111,2]
[346669931,1735164286328,-500.0,0.00012111,2]
[346669932,1735164286361,-500.0,0.00012111,2]
[346669933,1735164286394,-500.0,0.00012111,2]
[346669934,1735164286428,-500.0,0.00012111,2]
[346669935,1735164286462,-500.0,0.00012111,2]
[346669936,1735164286495,-717.75,0.00012111,2]
[346669937,1735164286529,-500.0,0.00012111,2]
[346669938,1735164286561,-847.26,0.00012111,2]
[346669939,1735164286594,-1570.67,0.00012111,2]
[346669940,1735164286626,-500.0,0.00012111,2]
[346669941,1735164286657,-1014.18,0.00012111,2]
[346669942,1735164286689,-11520.3,0.00012111,2]
[346669943,1735164286721,-1216.3,0.00012111,2]
[346669944,1735164286755,-500.0,0.00012111,2]
[346669945,1735164286787,-500.0,0.00012111,2]
[346669946,1735164286820,-500.0,0.00012111,2]
[346669947,1735164286851,-500.0,0.00012111,2]
[346669948,1735164286881,-3191.33,0.00012111,2]
[346669949,1735164286912,-500.0,0.00012111,2]
[346669950,1735164286945,-673.15,0.00012111,2]
[346669951,1735164286976,-500.0,0.00012111,2]
[346669952,1735164287008,-500.0,0.00012111,2]
[346669953,1735164287041,-915.79,0.00012111,2]
[346669954,1735164287073,-1827.67,0.00012111,2]
[346669955,1735164287104,-1456.3,0.00012111,2]
[346669956,1735164287136,-500.0,0.00012111,2]
[346669957,1735164287167,-500.0,0.00012111,2]
[346669958,1735164287200,-500.0,0.00012111,2]
[346669959,1735164287233,-1916.58,0.00012111,2]
[346669960,1735164287270,-500.0,0.00012111,2]
[346669961,1735164287305,-500.0,0.00012111,2]
[346669962,1735164287337,-162.57178413,0.00012111,2]
[346669963,1735164287371,-500.0,0.00012111,2]
[346669964,1735164287404,-500.0,0.00012111,2]
[346669965,1735164287439,-1026.93,0.00012111,2]
[346669966,1735164287472,-500.0,0.00012111,2]
[346669967,1735164287504,-1765.67,0.00012111,2]
[346669968,1735164287539,-1164.82,0.00012111,2]
[346669969,1735164287574,-500.0,0.00012111,2]
[346669970,1735164287607,-1448.16,0.00012111,2]
[346669971,1735164287639,-500.0,0.00012111,2]
[346669972,1735164287672,-915.24,0.00012111,2]
[346669973,1735164287704,-508.06,0.00012111,2]
[346669974,1735164287736,-500.0,0.00012111,2]
[346669975,1735164287970,-500.0,0.00012111,2]
[346669976,1735164288002,-917.06,0.00012111,2]
[346669977,1735164288036,-871.84,0.00012111,2]
[346669978,1735164288071,-500.0,0.00012111,2]
[346669979,1735164288104,-500.0,0.00012111,2]
[346669980,1735164288137,-3465.87,0.00012111,2]
[346669981,1735164288169,-500.0,0.00012111,2]
[346669982,1735164288202,-500.0,0.00012111,2]
[346669983,1735164288236,-500.0,0.00012111,2]
[346669984,1735164288268,-731.12,0.00012111,2]
[346669985,1735164288302,-2261.85,0.00012111,2]
[346669986,1735164288336,-500.0,0.00012111,2]
[346669987,1735164288371,-1589.3,0.00012111,2]
[346669988,1735164288404,-500.0,0.00012111,2]
[346669989,1735164288438,-500.0,0.00012111,2]
[346669990,1735164288472,-3907.78,0.00012111,2]
[346669991,1735164288504,-500.0,0.00012111,2]
[346669992,1735164288536,-500.0,0.00012111,2]
[346669993,1735164288568,-3075.07,0.00012111,2]
[346669994,1735164288600,-1335.52,0.00012111,2]
[346669995,1735164288631,-500.0,0.00012111,2]
[346669996,1735164288662,-500.0,0.00012111,2]
[346669997,1735164288694,-5532.92,0.00012111,2]
[346669998,1735164288726,-16927.22,0.00012111,2]
[346669999,1735164288757,-500.0,0.00012111,2]
[346670000,1735164288791,-500.0,0.00012111,2]
[346670001,1735164288823,-500.0,0.00012111,2]
[346670002,1735164288856,-500.0,0.00012111,2]
[346670003,1735164288887,-500.0,0.00012111,2]
[346670004,1735164288918,-500.0,0.00012111,2]
[346670005,1735164288955,-1498.21,0.00012111,2]
[346670006,1735164288986,-500.0,0.00012111,2]
[346670007,1735164289020,-2605.03,0.00012111,2]
[346670008,1735164289055,-500.0,0.00012111,2]
[346670009,1735164289088,-1727.49,0.00012111,2]
[346670010,1735164289120,-500.0,0.00012111,2]
[346670011,1735164289152,-500.0,0.00012111,2]
[346670012,1735164289184,-500.0,0.00012111,2]
[346670013,1735164289217,-500.0,0.00012111,2]
[346670014,1735164289250,-526.04,0.00012111,2]
[346670015,1735164289286,-959.12,0.00012111,2]
[346670016,1735164289321,-500.0,0.00012111,2]
[346670017,1735164289355,-500.0,0.00012111,2]
[346670018,1735164289387,-1885.42,0.00012111,2]
[346670019,1735164289421,-3946.16,0.00012111,2]
[346670020,1735164289453,-500.0,0.00012111,2]
[346670021,1735164289484,-500.0,0.00012111,2]
[346670022,1735164289516,-2017.46,0.00012111,2]
[346670023,1735164289550,-500.0,0.00012111,2]
[346670024,1735164289583,-500.0,0.00012111,2]
[346670025,1735164289615,-500.0,0.00012111,2]
[346670026,1735164289648,-500.0,0.00012111,2]
[346670027,1735164289679,-803.24,0.00012111,2]
[346670028,1735164289712,-1607.88,0.00012111,2]
[346670029,1735164289745,-500.0,0.00012111,2]
[346670030,1735164289783,-500.0,0.00012111,2]
[346670031,1735164289822,-1340.55,0.00012111,2]
[346670032,1735164289858,-752.51,0.00012111,2]
[346670033,1735164289891,-500.0,0.00012111,2]
[346670034,1735164289924,-3873.75,0.00012111,2]
[346670035,1735164289957,-500.0,0.00012111,2]
[346670036,1735164289990,-500.0,0.00012111,2]
[346670037,1735164290027,-500.0,0.00012111,2]
[346670038,1735164290064,-719.51,0.00012111,2]
[346670039,1735164290100,-575.03,0.00012111,2]
[346670040,1735164290136,-500.0,0.00012111,2]
[346670041,1735164290171,-500.0,0.00012111,2]
[346670042,1735164290208,-500.0,0.00012111,2]
[346670043,1735164290245,-500.0,0.00012111,2]
[346670044,1735164290278,-500.0,0.00012111,2]
[346670045,1735164290314,-859.57,0.00012111,2]
[346670046,1735164290348,-500.0,0.00012111,2]
[346670047,1735164290383,-500.0,0.00012111,2]
[346670048,1735164290419,-610.05,0.00012111,2]
[346670049,1735164290453,-500.0,0.00012111,2]
[346670050,1735164290488,-500.0,0.00012111,2]
[346670051,1735164290522,-500.0,0.00012111,2]
[346670052,1735164290562,-500.0,0.00012111,2]
[346670053,1735164290597,-500.0,0.00012111,2]
[346670054,1735164290632,-500.0,0.00012111,2]
[346670055,1735164290668,-566.37,0.00012111,2]
[346670056,1735164290703,-500.0,0.00012111,2]
[346670057,1735164290737,-1708.0,0.00012111,2]
[346670058,1735164290781,-500.0,0.00012111,2]
[346670059,1735164290818,-1042.1,0.00012111,2]
[346670060,1735164290855,-500.0,0.00012111,2]
[346670061,1735164290889,-500.0,0.00012111,2]
[346670062,1735164290922,-4558.88,0.00012111,2]
[346670063,1735164290958,-500.0,0.00012111,2]
[346670064,1735164290994,-1585.78,0.00012111,2]
[346670065,1735164291029,-530.9,0.00012111,2]
[346670066,1735164291066,-500.0,0.00012112,2]
[346670067,1735164291100,-500.0,0.00012112,2]
[346670068,1735164291134,-845.95,0.00012112,2]
[346670069,1735164291168,-500.0,0.00012112,2]
[346670070,1735164291201,-528.64,0.00012112,2]
[346670071,1735164291235,-500.0,0.00012112,2]
[346670072,1735164291268,-228.92,0.00012112,2]
[346670073,1735164291306,-510.77,0.00012112,2]
[346670074,1735164291340,-500.0,0.00012112,2]
[346670075,1735164291374,-806.64,0.00012112,2]
[346670076,1735164291409,-500.0,0.00012112,2]
[346670077,1735164291445,-500.0,0.00012112,2]
[346670078,1735164291481,-500.0,0.00012112,2]
[346670079,1735164291515,-500.0,0.00012112,2]
[346670080,1735164291547,-500.0,0.00012112,2]
[346670081,1735164291580,-500.0,0.00012112,2]
[346670082,1735164291613,-500.0,0.00012112,2]
[346670083,1735164291646,-531.8,0.00012112,2]
[346670084,1735164291681,-500.0,0.00012112,2]
[346670085,1735164291714,-500.0,0.00012112,2]
[346670086,1735164291748,-500.0,0.00012112,2]
[346670087,1735164291784,-567.43,0.00012112,2]
[346670088,1735164291816,-500.0,0.00012112,2]
[346670089,1735164291850,-500.0,0.00012112,2]
[346670090,1735164291883,-500.0,0.00012112,2]
[346670091,1735164291917,-500.0,0.00012112,2]
[346670092,1735164291949,-151.0,0.00012112,2]
[346670093,1735164291982,-500.0,0.00012113,2]
[346670094,1735164292017,-500.0,0.00012113,2]
[346670095,1735164292051,-500.0,0.00012113,2]
[346670096,1735164292086,-500.0,0.00012113,2]
[346670097,1735164292118,-500.0,0.00012113,2]
[346670098,1735164292151,-579.06,0.00012113,2]
[346670099,1735164292185,-500.0,0.00012113,2]
[346670100,1735164292218,-910.59,0.00012113,2]
[346670101,1735164292251,-500.0,0.00012113,2]
[346670102,1735164292282,-500.0,0.00012113,2]